bitfinex/quotes_SOLUSD_20250228
["timestamp","ask_amount","ask_price","bid_price","bid_amount"]
[1740702906292,0.0001,137.59,137.58,89.27441826]
[1740702908003,0.0001,137.59,137.58,89.30441826]
[1740702908211,0.0001,137.59,137.58,272.04194878]
[1740702908392,0.063,137.63,137.61,20.0]
[1740702908581,0.063,137.63,137.62,6.6]
[1740702910200,0.063,137.63,137.62,13.8663]
[1740702913911,0.063,137.63,137.62,232.37231826]
[1740702914199,0.063,137.63,137.62,225.10601826]
[1740702914710,0.063,137.63,137.62,88.60601826]
[1740702915404,0.063,137.63,137.58,218.53601826]
[1740702915706,0.20516157,137.63,137.58,82.03601826]
[1740702915914,1.5096,137.62,137.58,82.03601826]
[1740702916420,5.0868,137.61,137.58,0.03]
[1740702916591,26.3409,137.59,137.58,0.03]
[1740702917412,6.3409,137.59,137.58,0.03]
[1740702917711,26.3409,137.59,137.58,0.03]
[1740702918394,1.78996157,137.58,137.52,82.03601826]
[1740702918687,6.87796157,137.58,137.52,82.03601826]
[1740702919205,20.0,137.54,137.52,0.03]
[1740702919408,6.3188,137.53,137.52,0.03]
[1740702920002,7.9666,137.53,137.52,0.03]
[1740702921599,7.893,137.57,137.52,0.03]
[1740702921906,7.893,137.57,137.52,82.03601826]
[1740702922206,18.64964886,137.56,137.52,82.03601826]
[1740702922514,23.73834886,137.56,137.52,82.03601826]
[1740702922807,18.79181043,137.56,137.52,82.03601826]
[1740702923106,7.893,137.57,137.52,82.03601826]
[1740702923318,7.893,137.57,137.52,89.30761826]
[1740702924011,7.893,137.57,137.52,107.48671826]
[1740702925002,7.893,137.57,137.52,82.03601826]
[1740702925209,7.893,137.57,137.52,89.30761826]
[1740702926407,7.893,137.57,137.52,107.48671826]
[1740702927515,7.893,137.57,137.52,82.03601826]
[1740702927815,12.9814,137.57,137.52,82.03601826]
[1740702930319,12.9814,137.57,137.52,0.03]
[1740702934205,7.65497798,137.62,137.52,220.07661826]
[1740702934206,7.645,137.61,137.52,220.07661826]
[1740702934403,1.5007,137.61,137.55,20.0]
[1740702934612,1.5007,137.61,137.55,88.60601826]
[1740702935003,0.063,137.63,137.55,88.60601826]
[1740702936017,0.063,137.63,137.55,225.10601826]
[1740702936222,0.063,137.63,137.59,20.0]
[1740702936404,0.063,137.63,137.6,6.6]
[1740702936911,0.063,137.63,137.6,88.60601826]
[1740702937603,0.063,137.63,137.61,7.2669]
[1740702939314,0.063,137.63,137.61,225.77291826]
[1740702943623,0.063,137.63,137.61,89.27291826]
[1740702944021,0.063,137.63,137.61,82.00601826]
[1740702944207,6.4041,137.63,137.58,6.6]
[1740702944501,18.79181043,137.62,137.57,82.00601826]
[1740702945308,18.79181043,137.62,137.54,82.00601826]
[1740702945515,18.79181043,137.6,137.52,82.03601826]
[1740702946227,5.0875,137.59,137.52,82.03601826]
[1740702947525,99.99181043,137.58,137.52,0.03]
[1740702948108,20.0,137.54,137.52,0.03]
[1740702951319,81.2,137.57,137.52,0.03]
[1740702953343,18.79181043,137.56,137.52,0.03]
[1740702955623,23.88061043,137.56,137.52,0.03]
[1740702955950,18.79181043,137.56,137.52,0.03]
[1740702956246,81.2,137.57,137.52,0.03]
[1740702957441,18.79181043,137.56,137.52,0.03]
[1740702957748,18.79181043,137.54,137.52,0.03]
[1740702957944,23.88151043,137.53,137.52,0.03]
[1740702958446,107.08143043,137.53,137.52,0.03]
[1740702959127,105.08151043,137.53,137.52,0.03]
[1740702959329,23.88151043,137.53,137.52,0.03]
[1740702959542,25.88143043,137.53,137.52,0.03]
[1740702962142,23.88151043,137.53,137.52,0.03]
[1740702962840,47.08823043,137.51,137.44,0.03]
[1740702963038,18.79181043,137.49,137.44,0.03]
[1740702964143,81.2,137.5,137.44,0.03]
[1740702964667,86.2909,137.5,137.44,0.03]
[1740702965125,6.2965,137.51,137.44,82.03601826]
[1740702965327,81.2,137.52,137.44,82.03601826]
[1740702965527,81.2,137.52,137.44,88.63601826]
[1740702965751,86.2901,137.52,137.44,88.63601826]
[1740702966138,18.79181043,137.51,137.44,88.63601826]
[1740702966342,20.0,137.48,137.44,88.63601826]
[1740702966530,20.0,137.48,137.44,6.63]
[1740702966730,20.0,137.48,137.44,0.03]
[1740702968047,20.0,137.48,137.44,7.3057]
[1740702968350,20.0,137.48,137.44,0.03]
[1740702971053,20.0,137.47,137.44,0.03]
[1740702972362,25.092,137.47,137.44,0.03]
[1740702973032,18.79181043,137.46,137.44,0.03]
[1740702975454,5.0927,137.45,137.44,0.03]
[1740702975850,23.88451043,137.45,137.44,0.03]
[1740702978954,30.46451043,137.45,137.44,0.03]
[1740702980450,6.58,137.45,137.44,0.03]
[1740702980655,86.2925,137.46,137.44,0.03]
[1740702983548,23.88451043,137.45,137.44,0.03]
[1740702986174,25.88443043,137.45,137.44,0.03]
[1740702989174,29.4877727,137.45,137.44,0.03]
[1740702990178,27.4878527,137.45,137.44,0.03]
[1740702990363,23.88451043,137.45,137.44,0.03]
[1740702991676,13.0016,137.47,137.44,0.03]
[1740702991979,18.79181043,137.46,137.44,0.03]
[1740702992867,6.58,137.49,137.44,0.03]
[1740702993073,5.0909,137.5,137.44,0.03]
[1740702993280,18.79181043,137.49,137.44,0.03]
[1740702993470,1.99992,137.48,137.44,0.03]
[1740702993671,20.0,137.46,137.44,0.03]
[1740702994275,23.88451043,137.45,137.44,0.03]
[1740702994578,43.88451043,137.45,137.44,0.03]
[1740702995259,25.88443043,137.45,137.44,0.03]
[1740702996968,20.0,137.42,137.4,0.03]
[1740702999161,81.2,137.43,137.4,0.03]
[1740702999784,11.6721,137.47,137.4,0.03]
[1740702999990,18.64964886,137.46,137.4,0.03]
[1740703000687,83.19992,137.48,137.4,0.03]
[1740703000688,81.2,137.48,137.4,82.03601826]
[1740703000863,87.78,137.5,137.4,218.53601826]
[1740703001063,20.0,137.47,137.41,1.6112]
[1740703001281,20.0,137.47,137.42,7.2769]
[1740703001478,23.74094886,137.49,137.42,7.2769]
[1740703003087,18.79181043,137.48,137.41,83.61721826]
[1740703003394,5.092,137.47,137.41,90.89451826]
[1740703003761,20.0,137.47,137.41,90.89451826]
[1740703004591,20.0,137.47,137.41,109.08821826]
[1740703004784,104.94064886,137.5,137.42,6.6264]
[1740703004963,104.94064886,137.5,137.42,88.63241826]
[1740703005461,104.94064886,137.5,137.43,7.2764]
[1740703005880,105.00364886,137.5,137.43,7.2764]
[1740703006381,105.00364886,137.5,137.43,6.7764]
[1740703008579,105.00364886,137.5,137.43,10.35172861]
[1740703009189,105.00364886,137.5,137.43,92.35774687]
[1740703009373,23.88321043,137.49,137.43,92.35774687]
[1740703009574,23.88321043,137.49,137.43,82.00601826]
[1740703010779,23.88321043,137.49,137.43,89.28241826]
[1740703011294,86.3539,137.5,137.43,89.28241826]
[1740703011666,86.3539,137.5,137.43,232.36241826]
[1740703011667,0.063,137.5,137.43,232.36241826]
[1740703011867,0.063,137.5,137.43,250.55341826]
[1740703013887,0.063,137.5,137.43,225.08601826]
[1740703014099,0.14216157,137.49,137.43,88.58601826]
[1740703014282,0.14216157,137.49,137.43,82.00601826]
[1740703014483,20.0,137.47,137.43,82.00601826]
[1740703014679,81.2,137.48,137.41,83.64721826]
[1740703014883,18.79181043,137.47,137.41,83.64721826]
[1740703015086,20.0,137.44,137.41,82.03601826]
[1740703015276,20.0,137.44,137.41,0.03]
[1740703015598,5.0935,137.43,137.41,0.03]
[1740703016399,20.0,137.44,137.41,0.03]
[1740703016974,25.0931,137.44,137.41,0.03]
[1740703019890,20.0,137.44,137.41,0.03]
[1740703020084,5.0925,137.46,137.41,0.03]
[1740703020973,86.2921,137.47,137.41,0.03]
[1740703021176,5.0921,137.47,137.41,82.03601826]
[1740703021370,23.74134886,137.48,137.41,82.03601826]
[1740703021578,0.14216157,137.47,137.41,82.03601826]
[1740703022498,5.23426157,137.47,137.41,89.31331826]
[1740703022889,18.64964886,137.48,137.41,89.31331826]
[1740703023097,23.74144886,137.48,137.41,89.31331826]
[1740703023479,93.01346157,137.49,137.41,89.31331826]
[1740703023791,5.0913,137.49,137.42,6.2175]
[1740703023980,5.0913,137.49,137.42,12.7975]
[1740703024586,5.29616157,137.5,137.43,7.2764]
[1740703024783,23.94581043,137.5,137.43,89.28241826]
[1740703024984,18.64964886,137.49,137.43,82.00601826]
[1740703026103,23.74124886,137.49,137.43,89.28241826]
[1740703028304,23.74124886,137.49,137.43,82.00601826]
[1740703031186,23.80424886,137.49,137.43,82.00601826]
[1740703031604,5.1546,137.49,137.43,89.28221826]
[1740703031810,0.063,137.49,137.43,89.28221826]
[1740703032993,0.063,137.49,137.44,1.6363]
[1740703035010,0.063,137.49,137.45,25.4637]
[1740703035890,0.063,137.49,137.45,243.96971826]
[1740703037108,0.063,137.49,137.47,3.63993639]
[1740703037284,11.39993942,137.59,137.49,0.14216157]
[1740703037487,11.39993942,137.59,137.49,218.64817983]
[1740703037688,5.1506,137.59,137.49,218.50601826]
[1740703039210,5.1506,137.59,137.5,7.2727]
[1740703040805,5.1506,137.59,137.5,25.4545]
[1740703041005,0.063,137.59,137.51,6.0309]
[1740703041205,0.063,137.59,137.52,6.58]
[1740703041405,0.063,137.59,137.52,225.08601826]
[1740703042014,0.063,137.59,137.53,3.71534605]
[1740703044716,0.063,137.59,137.53,229.49226431]
[1740703045514,0.063,137.59,137.53,222.22136431]
[1740703045705,5.1505,137.59,137.53,229.49226431]
[1740703047001,0.063,137.59,137.53,229.49246431]
[1740703049219,0.063,137.59,137.54,1.5659]
[1740703049917,0.063,137.59,137.54,220.07191826]
[1740703050113,0.063,137.59,137.55,20.17569405]
[1740703050310,0.063,137.59,137.56,25.4433]
[1740703050612,0.063,137.59,137.57,6.56]
[1740703052314,0.063,137.59,137.57,10.18319381]
[1740703052819,0.063,137.59,137.57,6.56]
[1740703053137,0.063,137.59,137.55,82.00601826]
[1740703054113,0.063,137.59,137.55,89.27601826]
[1740703056419,0.063,137.59,137.55,265.87121826]
[1740703058926,0.063,137.59,137.55,243.95121826]
[1740703060036,0.063,137.59,137.58,7.2684]
[1740703060319,0.063,137.59,137.58,89.27441826]
[1740703060725,0.063,137.59,137.58,95.83441826]
[1740703061322,0.063,137.6,137.58,251.12622869]
[1740703065238,0.063,137.63,137.59,45.75515418]
[1740703065534,0.063,137.63,137.61,18.79181043]
[1740703066320,0.063,137.64,137.63,20.0]
[1740703066518,0.063,137.64,137.63,245.06601826]
[1740703066718,0.063,137.66,137.63,245.06601826]
[1740703067332,0.063,137.66,137.64,7.2653]
[1740703067525,0.063,137.66,137.64,225.77131826]
[1740703067916,0.063,137.67,137.65,22.31673973]
[1740703068118,1.6173,137.72,137.65,240.8226054]
[1740703068319,0.063,137.72,137.65,239.29782869]
[1740703069150,0.063,137.72,137.67,18.79181043]
[1740703069449,0.063,137.72,137.68,7.2632]
[1740703069736,0.063,137.72,137.68,254.64564164]
[1740703069943,0.063,137.72,137.68,253.12102869]
[1740703070638,0.063,137.72,137.69,18.64964886]
[1740703070835,0.063,137.72,137.69,237.29782869]
[1740703071238,0.063,137.72,137.71,20.0]
[1740703071452,0.063,137.72,137.71,257.29782869]
[1740703072727,0.063,137.72,137.71,264.55942869]
[1740703073260,0.0001,137.73,137.72,20.79181043]
[1740703073451,0.063,137.77,137.72,240.82162586]
[1740703073751,0.063,137.77,137.73,6.56]
[1740703074829,0.063,137.77,137.74,7.26]
[1740703077333,0.063,137.77,137.75,10.84387903]
[1740703077529,0.063,137.77,137.75,92.84989729]
[1740703078158,0.063,137.77,137.75,82.00601826]
[1740703080260,0.063,137.77,137.73,82.00601826]
[1740703084573,0.063,137.77,137.73,89.26651826]
[1740703084759,0.063,137.77,137.73,225.76651826]
[1740703085643,0.063,137.77,137.76,20.0]
[1740703085854,0.063,137.77,137.76,245.06601826]
[1740703086569,0.063,137.77,137.76,252.32501826]
[1740703087745,0.063,137.83,137.8,20.0]
[1740703087950,0.063,137.83,137.8,102.00601826]
[1740703088553,0.063,137.83,137.81,3.67690926]
[1740703088749,0.063,137.83,137.81,92.93922752]
[1740703089356,0.063,137.83,137.81,85.68292752]
[1740703089563,0.063,137.83,137.81,82.00601826]
[1740703089865,0.063,137.83,137.77,89.26431826]
[1740703090163,0.063,137.83,137.77,225.76431826]
[1740703090849,0.063,137.83,137.78,10.90703595]
[1740703091644,0.063,137.83,137.78,3.64923595]
[1740703091955,0.063,137.83,137.78,10.90683595]
[1740703094750,0.063,137.83,137.78,3.64923595]
[1740703095163,20.0,137.82,137.78,82.00601826]
[1740703095366,1.6006,137.81,137.76,82.00601826]
[1740703095862,1.6006,137.81,137.76,89.26471826]
[1740703101460,0.063,137.83,137.76,107.41221826]
[1740703101774,0.03,137.81,137.76,107.41221826]
[1740703102158,0.03,137.81,137.77,20.315393]
[1740703102355,0.03,137.81,137.8,20.0]
[1740703102561,0.03,137.81,137.8,238.50601826]
[1740703103256,0.03,137.81,137.8,252.32281826]
[1740703103870,0.063,137.83,137.8,289.25682869]
[1740703104577,0.063,137.83,137.81,18.79181043]
[1740703104955,0.063,137.83,137.82,20.31486558]
[1740703105375,0.0001,137.83,137.82,246.07668384]
[1740703105576,0.0001,137.83,137.82,244.55362869]
[1740703112459,0.0001,137.83,137.82,225.76181826]
[1740703115269,0.0001,137.83,137.82,89.26181826]
[1740703115463,0.0001,137.83,137.82,244.55362869]
[1740703116283,0.0001,137.83,137.82,246.55362869]
[1740703116774,0.0001,137.83,137.82,248.55362869]
[1740703116971,0.0001,137.84,137.83,20.79181043]
[1740703117175,1.6596,137.9,137.86,20.0]
[1740703117368,1.6596,137.9,137.87,6.58]
[1740703117569,0.063,137.91,137.87,6.58]
[1740703117981,0.063,137.91,137.88,7.2526]
[1740703119669,0.063,137.91,137.87,6.58]
[1740703119871,1.5816,137.89,137.84,82.00601826]
[1740703120081,7.8612,137.89,137.84,82.00601826]
[1740703120594,81.34216157,137.88,137.81,82.00601826]
[1740703121484,81.2,137.88,137.81,82.00601826]
[1740703121666,5.0772,137.87,137.81,82.00601826]
[1740703122265,81.2,137.88,137.81,82.00601826]
[1740703122479,86.277,137.88,137.81,89.26211826]
[1740703123304,20.0,137.85,137.79,3.58290761]
[1740703123467,20.0,137.84,137.78,82.00601826]
[1740703123784,7.7644,137.83,137.78,82.00601826]
[1740703124486,81.2,137.82,137.75,82.06901826]
[1740703125067,81.2,137.82,137.75,89.32841826]
[1740703125393,81.2,137.82,137.81,0.063]
[1740703125572,7.7644,137.83,137.81,0.063]
[1740703126384,12.8431,137.83,137.81,0.063]
[1740703128474,7.7644,137.83,137.81,0.063]
[1740703128977,12.8431,137.83,137.81,0.063]
[1740703129185,12.8431,137.83,137.75,218.56901826]
[1740703129378,12.8431,137.83,137.75,89.32851826]
[1740703129379,81.2,137.82,137.75,89.32851826]
[1740703130780,86.2792,137.82,137.75,89.32851826]
[1740703131800,86.2792,137.82,137.75,82.06901826]
[1740703132289,86.2792,137.82,137.75,89.32851826]
[1740703133273,86.2792,137.82,137.75,82.06901826]
[1740703133484,99.99181043,137.81,137.75,0.063]
[1740703133884,81.2,137.8,137.75,0.063]
[1740703135293,5.0801,137.79,137.75,0.063]
[1740703135785,8.1459,137.78,137.75,0.063]
[1740703137386,5.0809,137.77,137.75,0.063]
[1740703139893,114.69771043,137.78,137.75,0.063]
[1740703139894,95.9059,137.78,137.75,0.063]
[1740703140200,89.3459,137.78,137.75,0.063]
[1740703141495,8.1459,137.78,137.75,0.063]
[1740703148416,13.2265,137.78,137.75,0.063]
[1740703152887,8.1459,137.78,137.75,0.063]
[1740703153090,86.2803,137.79,137.75,0.063]
[1740703155318,20.0,137.76,137.75,0.063]
[1740703157099,25.0813,137.76,137.75,0.063]
[1740703158708,51.61461043,137.76,137.75,0.063]
[1740703167707,25.0813,137.76,137.75,0.063]
[1740703169811,20.0,137.76,137.75,0.063]
[1740703170015,86.2806,137.78,137.75,0.063]
[1740703171034,0.14216157,137.76,137.75,0.063]
[1740703171631,18.64964886,137.77,137.75,0.063]
[1740703172638,81.2,137.78,137.75,0.063]
[1740703175829,12.8302,137.8,137.75,0.063]
[1740703177638,7.7502,137.8,137.75,0.063]
[1740703177839,18.64964886,137.8,137.75,0.063]
[1740703178448,86.3095,137.81,137.75,0.063]
[1740703178746,81.23,137.81,137.75,82.06901826]
[1740703179736,81.23,137.81,137.76,7.259]
[1740703182253,81.23,137.81,137.75,82.06901826]
[1740703182454,86.3095,137.81,137.75,82.06901826]
[1740703182852,86.3095,137.81,137.75,89.32851826]
[1740703183853,86.3095,137.81,137.75,82.06901826]
[1740703184530,86.3095,137.81,137.75,89.32841826]
[1740703184731,81.23,137.81,137.75,89.32841826]
[1740703186432,81.23,137.81,137.75,107.47721826]
[1740703188158,0.03,137.81,137.75,107.47721826]
[1740703192537,0.03,137.81,137.77,7.2584]
[1740703193358,0.03,137.81,137.77,89.26441826]
[1740703195959,0.03,137.81,137.77,82.00601826]
[1740703197359,0.03,137.81,137.75,82.06901826]
[1740703198451,18.64964886,137.78,137.75,0.063]
[1740703198659,82.7124,137.8,137.75,0.063]
[1740703198841,18.64964886,137.79,137.75,0.063]
[1740703199766,82.7124,137.8,137.75,0.063]
[1740703199948,5.0805,137.78,137.75,0.063]
[1740703202065,86.2805,137.78,137.75,0.063]
[1740703202261,23.73094886,137.76,137.75,0.063]
[1740703202442,23.87311043,137.76,137.75,0.063]
[1740703202843,23.73094886,137.76,137.75,0.063]
[1740703204239,20.0,137.76,137.75,0.063]
[1740703204442,86.2806,137.78,137.75,0.063]
[1740703205366,5.0802,137.79,137.75,0.063]
[1740703210164,99.84964886,137.8,137.75,0.063]
[1740703210165,5.0809,137.77,137.75,0.063]
[1740703211565,86.2806,137.78,137.75,0.063]
[1740703211864,5.0799,137.8,137.75,0.063]
[1740703212566,81.23,137.81,137.75,0.063]
[1740703213169,0.03,137.81,137.76,1.6415]
[1740703214447,0.03,137.81,137.77,7.2584]
[1740703216570,18.67964886,137.81,137.75,0.063]
[1740703218175,20.0,137.77,137.75,0.063]
[1740703218669,5.0813,137.76,137.75,0.063]
[1740703219553,25.081,137.77,137.75,0.063]
[1740703219768,20.0,137.77,137.75,0.063]
[1740703219960,81.2,137.78,137.75,0.063]
[1740703220157,81.2,137.78,137.77,0.063]
[1740703221271,104.93014886,137.78,137.77,0.063]
[1740703223654,81.2,137.78,137.77,0.063]
[1740703227977,0.03,137.81,137.77,0.063]
[1740703228174,0.03,137.81,137.77,82.06901826]
[1740703229388,0.03,137.81,137.78,7.2579]
[1740703230070,0.03,137.81,137.77,89.32721826]
[1740703232461,0.03,137.81,137.78,1.5957]
[1740703232674,0.03,137.81,137.8,20.0]
[1740703232886,0.03,137.81,137.8,102.1]
[1740703233461,0.03,137.81,137.8,245.99896157]
[1740703233666,0.03,137.81,137.8,225.99896157]
[1740703234071,0.03,137.81,137.8,225.8568]
[1740703237770,0.03,137.81,137.8,89.3568]
[1740703238171,0.03,137.81,137.8,82.1]
[1740703238594,0.03,137.81,137.8,89.3568]
[1740703244396,0.03,137.81,137.79,7.2572]
[1740703244610,0.03,137.81,137.78,225.8578]
[1740703245079,0.03,137.81,137.77,82.163]
[1740703245496,0.03,137.81,137.77,0.063]
[1740703245884,0.17216157,137.81,137.77,0.063]
[1740703246501,5.0798,137.8,137.77,0.063]
[1740703246695,99.84964886,137.79,137.77,0.063]
[1740703247078,101.48454886,137.79,137.77,0.063]
[1740703247394,99.99181043,137.78,137.77,0.063]
[1740703247594,0.14216157,137.76,137.75,0.063]
[1740703247797,20.40623043,137.77,137.75,0.063]
[1740703248177,83.19992,137.76,137.75,0.0001]
[1740703248381,1.99992,137.73,137.72,0.063]
[1740703248597,21.99992,137.73,137.72,0.063]
[1740703248998,37.51998408,137.73,137.72,0.0001]
[1740703249380,31.59332261,137.73,137.72,0.0001]
[1740703249576,29.59332261,137.73,137.72,0.0001]
[1740703249802,29.73548418,137.73,137.72,0.0001]
[1740703250582,53.46753304,137.73,137.72,0.0001]
[1740703251404,51.63591043,137.73,137.72,0.0001]
[1740703251604,53.46753304,137.73,137.72,0.0001]
[1740703252095,51.63591043,137.73,137.72,0.0001]
[1740703252301,53.46753304,137.73,137.72,0.0001]
[1740703252802,51.63591043,137.73,137.72,0.0001]
[1740703252981,51.49374886,137.73,137.72,0.0001]
[1740703253397,51.63591043,137.73,137.72,0.0001]
[1740703254589,46.41134886,137.73,137.72,0.0001]
[1740703254790,11.1362,137.76,137.72,0.0001]
[1740703255307,18.79181043,137.75,137.72,0.0001]
[1740703255811,38.64964886,137.73,137.72,0.0001]
[1740703256009,6.0549,137.76,137.72,0.0001]
[1740703256217,11.1362,137.76,137.72,0.16847739]
[1740703256409,20.0,137.74,137.72,0.0001]
[1740703256799,20.0,137.74,137.72,0.16847739]
[1740703259816,18.64964886,137.73,137.72,0.0001]
[1740703260019,18.79181043,137.73,137.72,0.0001]
[1740703260322,20.79181043,137.73,137.72,0.0001]
[1740703260614,18.79181043,137.73,137.72,0.0001]
[1740703261418,23.87421043,137.73,137.72,0.0001]
[1740703261803,27.70583304,137.73,137.72,0.0001]
[1740703263825,23.87421043,137.73,137.72,0.0001]
[1740703264520,43.87421043,137.73,137.72,0.0001]
[1740703264705,43.73204886,137.73,137.72,0.0001]
[1740703264908,23.73204886,137.73,137.72,0.0001]
[1740703265108,38.64964886,137.73,137.72,0.0001]
[1740703266033,43.73204886,137.73,137.72,0.0001]
[1740703266228,43.87421043,137.73,137.72,0.0001]
[1740703267929,23.87421043,137.73,137.72,0.0001]
[1740703268112,27.70583304,137.73,137.72,0.0001]
[1740703268430,27.76883304,137.73,137.72,0.0001]
[1740703272328,23.93721043,137.73,137.72,0.0001]
[1740703276533,0.063,137.73,137.72,0.0001]
[1740703276730,5.1454,137.73,137.72,0.0001]
[1740703277111,23.79504886,137.73,137.72,0.0001]
[1740703277425,43.93721043,137.73,137.72,0.0001]
[1740703278013,45.93721043,137.73,137.72,0.0001]
[1740703279838,43.93721043,137.73,137.72,0.0001]
[1740703284549,27.76883304,137.73,137.72,0.0001]
[1740703284726,38.64964886,137.69,137.68,0.0001]
[1740703284924,119.84964886,137.69,137.68,0.0001]
[1740703285742,124.93344886,137.69,137.68,0.0001]
[1740703286539,18.79181043,137.68,137.63,0.063]
[1740703286741,18.79181043,137.66,137.63,0.063]
[1740703287345,18.64964886,137.66,137.63,0.23137739]
[1740703287830,23.73474886,137.66,137.63,0.23137739]
[1740703288147,5.22636157,137.68,137.64,0.16837739]
[1740703288638,23.87601043,137.68,137.64,0.16837739]
[1740703289027,23.87601043,137.68,137.63,0.063]
[1740703289028,0.14216157,137.66,137.63,0.063]
[1740703289328,18.64964886,137.65,137.63,0.063]
[1740703290444,5.0857,137.64,137.63,0.063]
[1740703293747,5.0851,137.66,137.63,0.23137739]
[1740703293930,5.0842,137.68,137.64,0.16837739]
[1740703294126,5.0842,137.68,137.65,0.16837739]
[1740703294438,101.2,137.69,137.63,0.063]
[1740703294439,86.284,137.69,137.66,0.16837739]
[1740703294755,18.64964886,137.68,137.65,0.16837739]
[1740703294936,18.64964886,137.68,137.64,0.16837739]
[1740703295249,5.0846,137.67,137.64,0.16837739]
[1740703295624,5.0846,137.67,137.63,0.23137739]
[1740703296428,5.0835,137.7,137.67,0.16837739]
[1740703296745,18.64964886,137.69,137.67,0.16837739]
[1740703297745,18.64964886,137.69,137.66,0.16837739]
[1740703298051,23.73354886,137.69,137.65,1.79167739]
[1740703298532,23.73354886,137.69,137.67,0.16837739]
[1740703298847,23.73354886,137.69,137.65,0.16837739]
[1740703299038,23.73354886,137.69,137.66,0.16837739]
[1740703300950,5.0836,137.7,137.67,0.16837739]
[1740703301245,5.0832,137.71,137.69,0.16837739]
[1740703302439,18.64964886,137.72,137.69,0.16837739]
[1740703303846,18.64964886,137.72,137.7,0.16837739]
[1740703304056,0.063,137.73,137.71,0.16837739]
[1740703304255,0.063,137.73,137.7,0.16837739]
[1740703304431,5.0827,137.72,137.71,0.16837739]
[1740703304829,18.71264886,137.73,137.71,0.16837739]
[1740703306736,5.1454,137.73,137.71,0.16837739]
[1740703307828,0.063,137.73,137.71,0.16837739]
[1740703308028,18.71264886,137.73,137.71,0.16837739]
[1740703308768,18.71264886,137.73,137.68,0.16837739]
[1740703309065,0.14216157,137.7,137.66,0.16837739]
[1740703309240,18.64964886,137.71,137.68,0.16837739]
[1740703309556,18.64964886,137.71,137.69,0.16837739]
[1740703309734,1.5778,137.73,137.69,0.16837739]
[1740703310136,0.063,137.73,137.7,0.16837739]
[1740703310555,0.063,137.73,137.71,0.16837739]
[1740703310749,18.71264886,137.73,137.7,0.16837739]
[1740703310955,18.71264886,137.73,137.71,0.16837739]
[1740703311754,18.71264886,137.73,137.7,0.16837739]
[1740703312646,5.0827,137.72,137.7,0.16837739]
[1740703313143,18.64964886,137.71,137.68,0.16837739]
[1740703313344,18.64964886,137.71,137.67,0.16837739]
[1740703314835,18.64964886,137.69,137.66,0.16837739]
[1740703316738,18.79181043,137.7,137.66,0.16837739]
[1740703316932,23.87531043,137.7,137.66,0.16837739]
[1740703317154,36.58401043,137.7,137.65,0.16837739]
[1740703317345,18.79181043,137.68,137.64,0.16837739]
[1740703317546,18.79181043,137.68,137.63,0.063]
[1740703317746,40.45161043,137.64,137.63,0.063]
[1740703319153,45.53731043,137.64,137.63,0.063]
[1740703319356,18.64964886,137.63,137.62,0.063]
[1740703319562,25.09181043,137.63,137.62,0.0001]
[1740703319753,0.14216157,137.62,137.59,0.03]
[1740703320059,0.14216157,137.6,137.59,0.03]
[1740703321264,23.87901043,137.6,137.59,0.03]
[1740703324051,105.07901043,137.6,137.59,0.03]
[1740703333453,99.99181043,137.59,137.58,0.0001]
[1740703333670,101.99181043,137.59,137.58,0.0001]
[1740703333984,99.99181043,137.59,137.58,0.0001]
[1740703335654,105.07931043,137.59,137.58,0.0001]
[1740703335855,18.79181043,137.55,137.53,0.03]
[1740703337283,0.14216157,137.55,137.53,0.03]